fUST/lending_fUST_20240111
["ID","MTS","AMOUNT","RATE_DAILY","PERIOD"]
[311104706,1704906647716,-221.32032128,0.00027945,2]
[311104708,1704906647726,-500.0,0.00027945,2]
[311104710,1704906647735,-508.5740827,0.00027945,2]
[311104712,1704906647743,-500.0,0.00027945,2]
[311104714,1704906647752,-500.0,0.00027945,2]
[311104716,1704906647761,-552.58437881,0.00027945,2]
[311104718,1704906647770,-500.0,0.00027945,2]
[311104720,1704906647779,-200.0,0.00027945,2]
[311104731,1704906647789,-598.24802421,0.00027945,2]
[311104733,1704906647888,-500.0,0.00027945,2]
[311104735,1704906647900,-500.0,0.00027945,2]
[311104737,1704906647909,-500.0,0.00027945,2]
[311104739,1704906647918,-500.0,0.00027945,2]
[311104741,1704906647927,-573.80067345,0.00027945,2]
[311104743,1704906647936,-500.0,0.00027945,2]
[311104745,1704906647945,-500.0,0.00027945,2]
[311104747,1704906647955,-500.0,0.00027945,2]
[311104749,1704906647964,-500.0,0.00027945,2]
[311104751,1704906647973,-500.0,0.00027945,2]
[311104753,1704906647982,-500.0,0.00027945,2]
[311104755,1704906647992,-500.0,0.00027945,2]
[311104757,1704906648001,-500.0,0.00027945,2]
[311104759,1704906648011,-500.0,0.00027945,2]
[311104761,1704906648019,-500.0,0.00027945,2]
[311104763,1704906648031,-500.0,0.00027945,2]
[311104765,1704906648040,-500.0,0.00027945,2]
[311104767,1704906648049,-500.0,0.00027945,2]
[311104769,1704906648058,-500.0,0.00027945,2]
[311104771,1704906648067,-500.0,0.00027945,2]
[311104773,1704906648076,-500.0,0.00027945,2]
[311104775,1704906648085,-500.0,0.00027945,2]
[311104777,1704906648094,-500.0,0.00027945,2]
[311104779,1704906648103,-500.0,0.00027945,2]
[311104781,1704906648113,-500.0,0.00027945,2]
[311104783,1704906648123,-500.0,0.00027945,2]
[311104785,1704906648132,-500.0,0.00027945,2]
[311104787,1704906648141,-500.0,0.00027945,2]
[311104789,1704906648153,-500.0,0.00027945,2]
[311104791,1704906648162,-154.29785145,0.00027945,2]
[311104793,1704906648171,-500.0,0.00027945,2]
[311104795,1704906648180,-500.0,0.00027945,2]
[311104796,1704906648189,-500.0,0.00027945,2]
[311104798,1704906648199,-502.97512192,0.00027945,2]
[311104800,1704906648209,-500.0,0.00027945,2]
[311104802,1704906648218,-500.0,0.00027945,2]
[311104805,1704906648227,-547.36654696,0.00027945,2]
[311104806,1704906648236,-500.0,0.00027945,2]
[311104808,1704906648246,-501.78053641,0.00027945,2]
[311104810,1704906648254,-927.26,0.00027945,2]
[311104812,1704906648263,-500.0,0.00027945,2]
[311104814,1704906648272,-500.0,0.00027945,2]
[311104816,1704906648283,-500.0,0.00027945,2]
[311104818,1704906648291,-500.0,0.00027945,2]
[311104820,1704906648301,-500.0,0.00027945,2]
[311104823,1704906648310,-500.0,0.00027945,2]
[311104825,1704906648319,-500.0,0.00027945,2]
[311104826,1704906648328,-506.72737826,0.00027945,2]
[311104829,1704906648337,-500.0,0.00027945,2]
[311104830,1704906648347,-500.0,0.00027945,2]
[311104832,1704906648356,-500.0,0.00027945,2]
[311104834,1704906648365,-500.0,0.00027945,2]
[311104837,1704906648374,-500.0,0.00027945,2]
[311104839,1704906648384,-540.19242962,0.00027945,2]
[311104841,1704906648393,-500.0,0.00027945,2]
[311104843,1704906648405,-1601.93,0.00027945,2]
[311104844,1704906648413,-500.0,0.00027945,2]
[311104846,1704906648423,-173.83232581,0.00027945,2]
[311104848,1704906648432,-500.0,0.00027945,2]
[311104851,1704906648441,-500.0,0.00027945,2]
[311104853,1704906648450,-500.0,0.00027945,2]
[311104854,1704906648459,-500.0,0.00027945,2]
[311104857,1704906648468,-500.0,0.00027945,2]
[311104858,1704906648477,-500.0,0.00027945,2]
[311104860,1704906648486,-500.0,0.00027945,2]
[311104862,1704906648495,-509.1764864,0.00027945,2]
[311104864,1704906648504,-155.7377901,0.00027945,2]
[311104866,1704906648514,-503.57217146,0.00027945,2]
[311104868,1704906648523,-500.0,0.00027945,2]
[311104870,1704906648532,-500.0,0.00027945,2]
[311104872,1704906648541,-500.0,0.00027945,2]
[311104874,1704906648549,-543.82779419,0.00027945,2]
[311104876,1704906648558,-500.0,0.00027945,2]
[311104878,1704906648567,-500.0,0.00027945,2]
[311104880,1704906648576,-500.0,0.00027945,2]
[311104883,1704906648588,-552.62260432,0.00027945,2]
[311104885,1704906648597,-500.0,0.00027945,2]
[311104887,1704906648606,-681.78,0.00027945,2]
[311104889,1704906648614,-500.0,0.00027945,2]
[311104891,1704906648623,-500.0,0.00027945,2]
[311104893,1704906648632,-500.0,0.00027945,2]
[311104895,1704906648641,-500.0,0.00027945,2]
[311104896,1704906648652,-500.0,0.00027945,2]
[311104899,1704906648661,-500.0,0.00027945,2]
[311104901,1704906648670,-500.0,0.00027945,2]
[311104902,1704906648682,-648.47,0.00027945,2]
[311104904,1704906648691,-500.0,0.00027945,2]
[311104906,1704906648700,-500.0,0.00027945,2]
[311104908,1704906648709,-500.0,0.00027945,2]
[311104910,1704906648718,-500.0,0.00027945,2]
[311104912,1704906648727,-500.0,0.00027945,2]
[311104914,1704906648736,-705.37,0.00027945,2]
[311104916,1704906648746,-500.0,0.00027945,2]
[311104919,1704906648755,-500.0,0.00027945,2]
[311104920,1704906648764,-500.0,0.00027945,2]
[311104922,1704906648773,-4152.8,0.00027945,2]
[311104924,1704906648782,-500.0,0.00027945,2]
[311104926,1704906648791,-500.0,0.00027945,2]
[311104928,1704906648800,-500.0,0.00027945,2]
[311104930,1704906648809,-500.0,0.00027945,2]
[311104932,1704906648818,-500.0,0.00027945,2]
[311104934,1704906648827,-287.98515762,0.00027945,2]
[311104936,1704906648837,-500.0,0.00027945,2]
[311104938,1704906648846,-500.0,0.00027945,2]
[311104940,1704906648855,-1000.0,0.00027945,2]
[311104942,1704906648864,-500.0,0.00027945,2]
[311104944,1704906648873,-534.63983472,0.00027945,2]
[311104947,1704906648882,-500.0,0.00027945,2]
[311104949,1704906648892,-500.0,0.00027945,2]
[311104951,1704906648902,-500.0,0.00027945,2]
[311104953,1704906648911,-500.0,0.00027945,2]
[311104955,1704906648920,-503.36388571,0.00027945,2]
[311104957,1704906648930,-500.0,0.00027945,2]
[311104959,1704906648939,-626.26495276,0.00027945,2]
[311104960,1704906648948,-500.0,0.00027945,2]
[311104963,1704906648958,-500.0,0.00027945,2]
[311104964,1704906648967,-9667.13,0.00027945,2]
[311104965,1704906648976,-500.0,0.00027945,2]
[311104966,1704906648985,-500.0,0.00027945,2]
[311104967,1704906648994,-469.88941298,0.00027945,2]
[311104968,1704906649003,-500.0,0.00027945,2]
[311104969,1704906649012,-500.0,0.00027945,2]
[311104970,1704906649021,-500.0,0.00027945,2]
[311104971,1704906649030,-600.74,0.00027945,2]
[311104972,1704906649039,-1219.97,0.00027945,2]
[311104973,1704906649048,-1138.5,0.00027945,2]
[311104974,1704906649057,-500.0,0.00027945,2]
[311104975,1704906649066,-638.09,0.00027945,2]
[311104976,1704906649075,-1430.3,0.00027945,2]
[311104977,1704906649084,-1315.67,0.00027945,2]
[311104978,1704906649093,-588.92997335,0.00028119,2]
[311104979,1704906649102,-500.0,0.00028219,2]
[311104980,1704906649111,-500.0,0.00028219,2]
[311104981,1704906649120,-500.0,0.00028219,2]
[311104982,1704906649129,-500.0,0.00028219,2]
[311104983,1704906649138,-533.41,0.00028219,2]
[311104984,1704906649148,-503.05323719,0.00028219,2]
[311104985,1704906649157,-500.0,0.00028219,2]
[311104986,1704906649165,-500.0,0.00028219,2]
[311104987,1704906649175,-500.0,0.00028219,2]
[311104988,1704906649184,-500.0,0.00028219,2]
[311104989,1704906649193,-500.0,0.00028219,2]
[311104990,1704906649202,-500.0,0.00028219,2]
[311104991,1704906649210,-472.93052492,0.00028219,2]
[311104992,1704906649220,-500.0,0.00028219,2]
[311104993,1704906649229,-501.33305653,0.00028219,2]
[311104994,1704906649238,-500.0,0.00028219,2]
[311104995,1704906649247,-161.74440105,0.00028219,2]
[311104996,1704906649255,-602.12179745,0.00028219,2]
[311104997,1704906649264,-500.0,0.00028219,2]
[311104998,1704906649273,-500.0,0.00028219,2]
[311104999,1704906649282,-500.0,0.00028219,2]
[311105000,1704906649291,-500.0,0.00028219,2]
[311105001,1704906649300,-500.0,0.00028219,2]
[311105003,1704906649309,-500.0,0.00028219,2]
[311105005,1704906649318,-500.0,0.00028219,2]
[311105006,1704906649327,-500.0,0.00028219,2]
[311105007,1704906649336,-500.0,0.00028219,2]
[311105008,1704906649346,-500.0,0.00028219,2]
[311105009,1704906649355,-500.0,0.00028219,2]
[311105010,1704906649364,-750.47,0.00028219,2]
[311105011,1704906649373,-500.0,0.00028219,2]
[311105012,1704906649382,-500.0,0.00028219,2]
[311105013,1704906649390,-500.0,0.00028219,2]
[311105014,1704906649402,-510.60463476,0.00028219,2]
[311105015,1704906649411,-500.0,0.00028219,2]
[311105016,1704906649420,-500.0,0.00028219,2]
[311105017,1704906649429,-500.0,0.00028219,2]
[311105018,1704906649438,-500.0,0.00028219,2]
[311105019,1704906649447,-500.0,0.00028219,2]
[311105020,1704906649456,-500.0,0.00028219,2]
[311105021,1704906649466,-500.0,0.00028219,2]
[311105022,1704906649476,-500.0,0.00028219,2]
[311105024,1704906649485,-500.0,0.00028219,2]
[311105026,1704906649494,-500.0,0.00028219,2]
[311105027,1704906649503,-500.0,0.00028219,2]
[311105029,1704906649512,-500.0,0.00028219,2]
[311105031,1704906649521,-500.0,0.00028219,2]
[311105033,1704906649531,-500.0,0.00028219,2]
[311105034,1704906649540,-500.0,0.00028219,2]
[311105035,1704906649549,-500.0,0.00028219,2]
[311105036,1704906649558,-647.31295981,0.00028219,2]
[311105037,1704906649567,-927.26,0.00028219,2]
[311105038,1704906649576,-500.0,0.00028219,2]
[311105039,1704906649586,-261.31725335,0.00028219,2]
[311105040,1704906649595,-500.0,0.00028219,2]
[311105041,1704906649604,-500.0,0.00028219,2]
[311105042,1704906649613,-532.41305287,0.00028219,2]
[311105043,1704906649622,-500.0,0.00028219,2]
[311105044,1704906649631,-500.0,0.00028219,2]
[311105046,1704906649640,-500.0,0.00028219,2]
[311105047,1704906649650,-1601.93,0.00028219,2]
[311105049,1704906649659,-500.0,0.00028219,2]
[311105050,1704906649669,-500.0,0.00028219,2]
[311105051,1704906649678,-500.0,0.00028219,2]
[311105052,1704906649687,-500.0,0.00028219,2]
[311105053,1704906649696,-500.0,0.00028219,2]
[311105054,1704906649705,-500.0,0.00028219,2]
[311105055,1704906649714,-500.0,0.00028219,2]
[311105056,1704906649723,-500.0,0.00028219,2]
[311105057,1704906649732,-500.0,0.00028219,2]
[311105058,1704906649740,-500.0,0.00028219,2]
[311105059,1704906649749,-500.0,0.00028219,2]
[311105060,1704906649758,-500.0,0.00028219,2]
[311105061,1704906649767,-500.0,0.00028219,2]
[311105062,1704906649776,-681.78,0.00028219,2]
[311105063,1704906649785,-500.0,0.00028219,2]
[311105064,1704906649794,-500.0,0.00028219,2]
[311105065,1704906649803,-500.0,0.00028219,2]
[311105066,1704906649812,-648.47,0.00028219,2]
[311105067,1704906649823,-500.0,0.00028219,2]
[311105068,1704906649831,-500.0,0.00028219,2]
[311105069,1704906649840,-451.33434797,0.00028219,2]
[311105070,1704906649849,-500.0,0.00028219,2]
[311105071,1704906649859,-705.37,0.00028219,2]
[311105072,1704906649868,-500.0,0.00028219,2]
[311105073,1704906649877,-500.0,0.00028219,2]
[311105074,1704906649885,-500.0,0.00028219,2]
[311105075,1704906649895,-4152.8,0.00028219,2]
[311105076,1704906649904,-500.0,0.00028219,2]
[311105077,1704906649913,-500.0,0.00028219,2]
[311105078,1704906649922,-613.79796148,0.00028219,2]
[311105079,1704906649930,-500.0,0.00028219,2]
[311105080,1704906649940,-500.0,0.00028219,2]
[311105081,1704906649950,-500.0,0.00028219,2]
[311105082,1704906649959,-500.0,0.00028219,2]
[311105088,1704906650040,-500.0,0.00028219,2]
[311105090,1704906650063,-500.0,0.00028219,2]
[311105091,1704906650072,-500.0,0.00028219,2]
[311105092,1704906650082,-500.0,0.00028219,2]
[311105093,1704906650091,-9667.13,0.00028219,2]
[311105094,1704906650102,-500.0,0.00028219,2]
[311105095,1704906650112,-500.0,0.00028219,2]
[311105096,1704906650122,-500.0,0.00028219,2]
[311105097,1704906650131,-500.0,0.00028219,2]
[311105098,1704906650140,-500.0,0.00028219,2]
[311105099,1704906650151,-600.74,0.00028219,2]
[311105100,1704906650161,-1219.97,0.00028219,2]
[311105101,1704906650169,-1138.5,0.00028219,2]
[311105102,1704906650178,-500.0,0.00028219,2]
[311105103,1704906650188,-638.09,0.00028219,2]
[311105104,1704906650197,-1430.3,0.00028219,2]
[311105105,1704906650208,-1315.67,0.00028219,2]
[311105106,1704906650218,-150.8642222,0.00028353,4]
[311105107,1704906650228,-500.0,0.00028492,2]
[311105108,1704906650238,-508.852716,0.00028493,2]
[311105109,1704906650248,-508.852716,0.00028493,2]
[311105110,1704906650259,-533.41,0.00028493,2]
[311105111,1704906650269,-500.0,0.00028493,2]
[311105112,1704906650279,-500.0,0.00028493,2]
[311105113,1704906650289,-500.0,0.00028493,2]
[311105114,1704906650299,-500.0,0.00028493,2]
[311105115,1704906650309,-500.0,0.00028493,2]
[311105116,1704906650318,-500.0,0.00028493,2]
[311105117,1704906650328,-500.0,0.00028493,2]
[311105118,1704906650337,-446.21810783,0.00028493,2]
[311105119,1704906650347,-500.0,0.00028493,2]
[311105120,1704906650356,-500.0,0.00028493,2]
[311105121,1704906650366,-500.0,0.00028493,2]
[311105122,1704906650375,-500.0,0.00028493,2]
[311105123,1704906650384,-500.19121575,0.00028493,2]
[311105124,1704906650393,-500.0,0.00028493,2]
[311105125,1704906650404,-500.0,0.00028493,2]
[311105126,1704906650414,-750.47,0.00028493,2]
[311105127,1704906650423,-188.56233448,0.00028493,2]
[311105128,1704906650432,-500.0,0.00028493,2]
[311105129,1704906650442,-500.0,0.00028493,2]
[311105130,1704906650451,-500.0,0.00028493,2]
[311105131,1704906650460,-567.46003939,0.00028493,2]
[311105132,1704906650469,-500.0,0.00028493,2]
[311105133,1704906650478,-500.0,0.00028493,2]
[311105134,1704906650487,-500.0,0.00028493,2]
[311105135,1704906650497,-500.0,0.00028493,2]
[311105136,1704906650507,-500.0,0.00028493,2]
[311105137,1704906650516,-500.0,0.00028493,2]
[311105138,1704906650525,-185.62363994,0.00028493,2]
[311105139,1704906650535,-500.0,0.00028493,2]
[311105140,1704906650544,-500.0,0.00028493,2]
[311105141,1704906650554,-500.0,0.00028493,2]
[311105142,1704906650563,-927.26,0.00028493,2]
[311105143,1704906650573,-500.0,0.00028493,2]
[311105144,1704906650582,-533.73436023,0.00028493,2]
[311105145,1704906650591,-500.0,0.00028493,2]
[311105146,1704906650601,-500.0,0.00028493,2]
[311105147,1704906650610,-1601.93,0.00028493,2]
[311105148,1704906650619,-500.0,0.00028493,2]
[311105149,1704906650628,-500.0,0.00028493,2]
[311105150,1704906650638,-500.0,0.00028493,2]
[311105151,1704906650647,-500.0,0.00028493,2]
[311105152,1704906650657,-500.0,0.00028493,2]
[311105153,1704906650666,-500.0,0.00028493,2]
[311105154,1704906650675,-319.32764842,0.00028493,2]
[311105155,1704906650684,-500.0,0.00028493,2]
[311105156,1704906650694,-500.0,0.00028493,2]
[311105157,1704906650703,-500.0,0.00028493,2]
[311105158,1704906650712,-681.78,0.00028493,2]
[311105159,1704906650721,-500.0,0.00028493,2]
[311105160,1704906650730,-500.0,0.00028493,2]
[311105161,1704906650739,-500.0,0.00028493,2]
[311105162,1704906650748,-648.47,0.00028493,2]
[311105163,1704906650758,-500.0,0.00028493,2]
[311105164,1704906650767,-500.0,0.00028493,2]
[311105165,1704906650777,-500.0,0.00028493,2]
[311105166,1704906650786,-705.37,0.00028493,2]
[311105167,1704906650795,-500.0,0.00028493,2]
[311105168,1704906650805,-500.0,0.00028493,2]
[311105169,1704906650814,-500.0,0.00028493,2]
[311105170,1704906650823,-4152.8,0.00028493,2]
[311105171,1704906650832,-500.0,0.00028493,2]
[311105172,1704906650842,-500.0,0.00028493,2]
[311105173,1704906650851,-500.0,0.00028493,2]
[311105174,1704906650860,-583.02535419,0.00028493,2]
[311105175,1704906650869,-500.0,0.00028493,2]
[311105176,1704906650878,-500.0,0.00028493,2]
[311105177,1704906650888,-500.0,0.00028493,2]
[311105178,1704906650898,-9667.13,0.00028493,2]
[311105179,1704906650907,-500.0,0.00028493,2]
[311105180,1704906650916,-500.0,0.00028493,2]
[311105181,1704906650926,-500.0,0.00028493,2]
[311105182,1704906650934,-500.0,0.00028493,2]
[311105183,1704906650943,-600.74,0.00028493,2]
[311105184,1704906650952,-1219.97,0.00028493,2]
[311105185,1704906650962,-1138.5,0.00028493,2]
[311105186,1704906650971,-638.09,0.00028493,2]
[311105187,1704906650980,-1430.3,0.00028493,2]
[311105188,1704906650990,-1315.67,0.00028493,2]
[311105189,1704906650999,-533.41,0.00028767,2]
[311105190,1704906651008,-500.0,0.00028767,2]
[311105191,1704906651018,-500.0,0.00028767,2]
[311105192,1704906651027,-500.0,0.00028767,2]
[311105193,1704906651036,-500.0,0.00028767,2]
[311105194,1704906651045,-500.0,0.00028767,2]
[311105195,1704906651054,-500.0,0.00028767,2]
[311105196,1704906651063,-500.0,0.00028767,2]
[311105197,1704906651073,-500.0,0.00028767,2]
[311105198,1704906651082,-500.0,0.00028767,2]
[311105199,1704906651091,-500.0,0.00028767,2]
[311105200,1704906651101,-750.47,0.00028767,2]
[311105201,1704906651110,-500.0,0.00028767,2]
[311105202,1704906651119,-561.23756793,0.00028767,2]
[311105203,1704906651128,-500.0,0.00028767,2]
[311105204,1704906651137,-500.0,0.00028767,2]
[311105205,1704906651146,-500.0,0.00028767,2]
[311105206,1704906651155,-155.0,0.00028767,2]
[311105207,1704906651165,-500.0,0.00028767,2]
[311105208,1704906651174,-500.0,0.00028767,2]
[311105209,1704906651184,-927.26,0.00028767,2]
[311105210,1704906651193,-500.0,0.00028767,2]
[311105211,1704906651202,-564.67628536,0.00028767,2]
[311105212,1704906651212,-500.0,0.00028767,2]
[311105213,1704906651221,-1601.93,0.00028767,2]
[311105214,1704906651230,-500.0,0.00028767,2]
[311105215,1704906651240,-500.0,0.00028767,2]
[311105216,1704906651249,-500.0,0.00028767,2]
[311105217,1704906651258,-500.0,0.00028767,2]
[311105218,1704906651267,-500.0,0.00028767,2]
[311105219,1704906651277,-500.0,0.00028767,2]
[311105220,1704906651287,-500.0,0.00028767,2]
[311105221,1704906651296,-500.0,0.00028767,2]
[311105222,1704906651306,-681.78,0.00028767,2]
[311105223,1704906651316,-500.0,0.00028767,2]
[311105224,1704906651325,-648.47,0.00028767,2]
[311105225,1704906651334,-500.0,0.00028767,2]
[311105226,1704906651343,-500.0,0.00028767,2]
[311105227,1704906651353,-500.0,0.00028767,2]
[311105228,1704906651362,-705.37,0.00028767,2]
[311105229,1704906651371,-500.0,0.00028767,2]
[311105230,1704906651380,-500.0,0.00028767,2]
[311105231,1704906651390,-529.27051169,0.00028767,2]
[311105232,1704906651399,-4152.8,0.00028767,2]
[311105233,1704906651408,-500.0,0.00028767,2]
[311105234,1704906651418,-500.0,0.00028767,2]
[311105235,1704906651427,-9667.13,0.00028767,2]
[311105236,1704906651436,-500.0,0.00028767,2]
[311105237,1704906651446,-500.0,0.00028767,2]
[311105238,1704906651455,-532.77,0.00028767,2]
[311105239,1704906651464,-600.74,0.00028767,2]
[311105240,1704906651474,-1219.97,0.00028767,2]
[311105241,1704906651483,-1138.5,0.00028767,2]
[311105242,1704906651493,-638.09,0.00028767,2]
[311105243,1704906651502,-1430.3,0.00028767,2]
[311105244,1704906651511,-1315.67,0.00028767,2]
[311105245,1704906651520,-390.44912,0.00028767,2]
[311105246,1704906651530,-390.44912,0.00028767,2]
[311105247,1704906651539,-150.8642222,0.00028932,2]
[311105248,1704906651549,-165.901457,0.00028963,2]
[311105249,1704906651558,-151.51510611,0.00028982,2]
[311105250,1704906651568,-187800.28654,0.00028999,2]
[311105251,1704906651578,-6000.0,0.00029,2]
[311105252,1704906651587,-5999.97,0.00029,2]
[311105253,1704906651596,-158.30593028,0.00029036,2]
[311105254,1704906651605,-158.32519524,0.00029037,2]
[311105255,1704906651614,-155.01068281,0.00029037,2]
[311105256,1704906651624,-275.44972625,0.00029038,2]
[311105257,1704906651633,-168.53910427,0.00029038,2]
[311105258,1704906651642,-1214.06643658,0.00029038,2]
[311105259,1704906651651,-155.06275693,0.00029038,2]
[311105260,1704906651660,-200.0,0.00029038,2]
[311105261,1704906651670,-155.39178535,0.00029038,2]
[311105262,1704906651679,-155.10911915,0.00029038,2]
[311105263,1704906651688,-155.17839186,0.00029038,2]
[311105264,1704906651696,-11007.88949272,0.00029038,2]
[311105265,1704906651706,-155.29426556,0.00029039,2]
[311105266,1704906651715,-2126.09470477,0.00029039,2]
[311105267,1704906651724,-180.28265137,0.00029039,2]
[311105268,1704906651734,-1821.85168105,0.0002904,2]
[311105269,1704906651743,-3313.2630203,0.0002904,2]
[311105270,1704906651751,-2079.63666476,0.0002904,2]
[311105271,1704906651760,-300.0,0.0002904,2]
[311105272,1704906651770,-200.0,0.0002904,2]
[311105273,1704906651779,-305.01426273,0.0002904,2]
[311105274,1704906651788,-763.40324942,0.0002904,2]
[311105275,1704906651798,-233238.77910181,0.0002904,7]
[311105276,1704906651806,-154.86062544,0.0002904,2]
[311105277,1704906651815,-151.0,0.0002904,2]
[311105278,1704906651824,-151.0,0.0002904,2]
[311105279,1704906651833,-500.0,0.0002904,2]
[311105280,1704906651842,-154.94093055,0.0002904,2]
[311105281,1704906651851,-390.44912,0.0002904,2]
[311105282,1704906651860,-390.44912,0.0002904,2]
[311105283,1704906651869,-508.852716,0.0002904,2]
[311105284,1704906651878,-508.852716,0.0002904,2]
[311105285,1704906651886,-533.41,0.00029041,2]
[311105286,1704906651896,-504.18,0.00029041,2]
[311105287,1704906651905,-500.0,0.00029041,2]
[311105288,1704906651915,-500.0,0.00029041,2]
[311105289,1704906651924,-500.0,0.00029041,2]
[311105290,1704906651933,-500.0,0.00029041,2]
[311105291,1704906651942,-500.0,0.00029041,2]
[311105292,1704906651952,-750.47,0.00029041,2]
[311105293,1704906651960,-500.0,0.00029041,2]
[311105294,1704906651970,-500.0,0.00029041,2]
[311105295,1704906651979,-500.0,0.00029041,2]
[311105296,1704906651987,-500.0,0.00029041,2]
[311105297,1704906651996,-500.0,0.00029041,2]
[311105298,1704906652086,-927.26,0.00029041,2]
[311105299,1704906652096,-500.0,0.00029041,2]
[311105300,1704906652105,-500.0,0.00029041,2]
[311105301,1704906652115,-1601.93,0.00029041,2]
[311105302,1704906652124,-500.0,0.00029041,2]
[311105303,1704906652133,-500.0,0.00029041,2]
[311105304,1704906652143,-500.0,0.00029041,2]
[311105305,1704906652153,-500.0,0.00029041,2]
[311105306,1704906652162,-500.0,0.00029041,2]
[311105307,1704906652172,-500.0,0.00029041,2]
[311105308,1704906652182,-500.0,0.00029041,2]
[311105309,1704906652191,-500.0,0.00029041,2]
[311105310,1704906652201,-681.78,0.00029041,2]
[311105311,1704906652210,-500.0,0.00029041,2]
[311105312,1704906652220,-648.47,0.00029041,2]
[311105313,1704906652229,-500.0,0.00029041,2]
[311105314,1704906652238,-500.0,0.00029041,2]
[311105315,1704906652247,-500.0,0.00029041,2]
[311105316,1704906652256,-705.37,0.00029041,2]
[311105317,1704906652265,-342.7753344,0.00029041,2]
[311105318,1704906652275,-500.0,0.00029041,2]
[311105319,1704906652284,-4152.8,0.00029041,2]
[311105320,1704906652294,-500.0,0.00029041,2]
[311105321,1704906652303,-500.0,0.00029041,2]
[311105322,1704906652313,-9667.13,0.00029041,2]
[311105323,1704906652323,-500.0,0.00029041,2]
[311105324,1704906652332,-500.0,0.00029041,2]
[311105325,1704906652342,-600.74,0.00029041,2]
[311105326,1704906652351,-1219.97,0.00029041,2]
[311105327,1704906652360,-1138.5,0.00029041,2]
[311105328,1704906652369,-638.09,0.00029041,2]
[311105329,1704906652378,-1430.3,0.00029041,2]
[311105330,1704906652387,-1315.67,0.00029041,2]
[311105331,1704906652395,-620.00088106,0.00029106,2]
[311105332,1704906652406,-533.41,0.00029315,2]
[311105333,1704906652414,-500.0,0.00029315,2]
[311105334,1704906652424,-500.0,0.00029315,2]
[311105335,1704906652432,-500.0,0.00029315,2]
[311105336,1704906652442,-750.47,0.00029315,2]
[311105337,1704906652450,-500.0,0.00029315,2]
[311105338,1704906652460,-500.0,0.00029315,2]
[311105339,1704906652469,-500.0,0.00029315,2]
[311105340,1704906652478,-500.0,0.00029315,2]
[311105341,1704906652487,-500.0,0.00029315,2]
[311105342,1704906652496,-927.26,0.00029315,2]
[311105343,1704906652505,-500.0,0.00029315,2]
[311105344,1704906652514,-500.0,0.00029315,2]
[311105345,1704906652523,-1601.93,0.00029315,2]
[311105346,1704906652534,-500.0,0.00029315,2]
[311105347,1704906652544,-500.0,0.00029315,2]
[311105348,1704906652554,-537.15148548,0.00029315,2]
[311105349,1704906652563,-500.0,0.00029315,2]
[311105350,1704906652573,-500.0,0.00029315,2]
[311105351,1704906652582,-500.0,0.00029315,2]
[311105352,1704906652591,-500.0,0.00029315,2]
[311105353,1704906652600,-500.0,0.00029315,2]